fUSD/lending_fUSD_20250713
["ID","MTS","AMOUNT","RATE_DAILY","PERIOD"]
[371602823,1752364836089,1000.0,0.0004,120]
[371602824,1752364836161,16952.0,0.00042,30]
[371602825,1752364862646,2059.0,0.00042,120]
[371602826,1752364890773,150.0,0.00039984,120]
[371603021,1752365120380,163.97678494,0.000372,120]
[371603022,1752365125286,163.97678492,0.000372,120]
[371603024,1752365190833,156.58,0.00013699,2]
[371603025,1752365232136,-823.0,0.00027396,2]
[371603026,1752365232160,-250.0,0.00027397,2]
[371603027,1752365232184,-500.0,0.00027397,2]
[371603028,1752365232213,-74.37176522,0.00027397,2]
[371603029,1752365236099,-425.62823478,0.00027397,2]
[371603030,1752365236122,-500.0,0.00027397,2]
[371603031,1752365236144,-500.0,0.00027397,2]
[371603032,1752365236169,-500.0,0.00027397,2]
[371603033,1752365236192,-250.63531517,0.00027397,2]
[371603034,1752365236215,-455.32566406,0.00027397,2]
[371603035,1752365236239,-156.58,0.00027397,2]
[371603036,1752365236261,-273.19539843,0.00027497,2]
[371603037,1752365236284,-210.50656006,0.00028,10]
[371603038,1752365236307,-250.0,0.00030136,2]
[371603039,1752365236330,-251.17385993,0.00038356,2]
[371603040,1752365236353,-156.58,0.00041096,2]
[371603041,1752365236375,-150.0,0.00042694,120]
[371603042,1752365236398,-163.97678492,0.00043399,120]
[371603043,1752365236420,-170.87,0.00043665,2]
[371603044,1752365236447,-160.0,0.0004989,2]
[371603045,1752365236473,-218.3,0.00051,120]
[371603046,1752365236496,-163.97678492,0.00051449,120]
[371603047,1752365236519,-700.576695,0.00052745,5]
[371603048,1752365236541,-153.6,0.00053011,120]
[371603049,1752365236564,-837.79062735,0.00054648,2]
[371603050,1752365236587,-126.33195863,0.00054795,120]
[371603051,1752365249123,-23.66804137,0.00054795,120]
[371603052,1752365249144,-150.93104365,0.00054795,120]
[371603053,1752365249165,-150.0,0.00054795,120]
[371603054,1752365249186,-150.0,0.00054795,120]
[371603055,1752365249207,-150.0,0.00054795,120]
[371603056,1752365249229,-150.0,0.00054795,120]
[371603057,1752365249250,-150.0,0.00054795,120]
[371603058,1752365249272,-156.58,0.00054795,2]
[371603059,1752365249297,-620.0,0.00054809,30]
[371603060,1752365249318,-151.0,0.00055,120]
[371603061,1752365249340,-2000.0,0.00055,90]
[371603062,1752365249362,-151.58,0.00055799,120]
[371603063,1752365249382,-168.76,0.00055839,120]
[371603064,1752365249404,-200.83,0.00055885,30]
[371603065,1752365249425,-212.03253054,0.00055963,120]
[371603066,1752365350093,-150.0,0.0003,3]
[371603067,1752365350116,-170.62023366,0.0003092,2]
[371603068,1752365350138,-150.0,0.0003102,3]
[371603069,1752365350160,-150.0,0.0003204,3]
[371603070,1752365350183,-150.0,0.0003306,3]
[371603071,1752365350205,-150.0,0.0003408,3]
[371603072,1752365350227,-150.0,0.000351,3]
[371603073,1752365350251,-150.0,0.0003612,3]
[371603074,1752365350274,-150.0,0.0003714,3]
[371603075,1752365350296,-170.62023366,0.00037339,2]
[371603076,1752365350317,-150.0,0.0003816,3]
[371603084,1752365432422,-150.0,0.0003918,3]
[371603085,1752365432433,-170.62023366,0.000401,2]
[371603086,1752365432443,-150.0,0.000402,3]
[371603087,1752365432452,-150.0,0.0004122,3]
[371603088,1752365432462,-150.0,0.0004224,3]
[371603089,1752365432472,-170.62023366,0.0004317,2]
[371603090,1752365432482,-150.0,0.0004327,3]
[371603091,1752365432492,-150.0,0.00050276,120]
[371603092,1752365432501,-60.34680526,0.00055274,30]
[371603093,1752365432537,-139.65319474,0.00055274,30]
[371603094,1752365432547,-150.0,0.00055687,120]
[371603095,1752365432556,-1000.0,0.00055918,120]
[371603096,1752365432566,-166.03,0.00055961,2]
[371603097,1752365432576,-37.96746946,0.00055963,120]
[371603098,1752365432585,-150.81292733,0.00055963,120]
[371603099,1752365432596,-200.0,0.00056027,7]
[371603100,1752365432607,-218.0,0.00056027,9]
[371603101,1752365432618,-151.72,0.0005608,120]
[371603102,1752365432631,-224.1563802,0.00056111,2]
[371603103,1752365432642,-181.72,0.00056148,120]
[371603104,1752365432653,-206.27,0.00056171,2]
[371603105,1752365432662,-372.53917216,0.0005625,90]
[371603106,1752365432676,-877.95,0.0005625,90]
[371603107,1752365432689,-665.23661017,0.0005625,90]
[371603108,1752365432702,-84.27421767,0.0005625,90]
[371603109,1752365432711,-210.50656006,0.00056295,2]
[371603110,1752365432721,-995.193,0.00056299,108]
[371603111,1752365432730,-445.01574163,0.00056312,10]
[371603112,1752365432742,-357.8598032,0.00056312,10]
[371603113,1752365432774,-423.60590505,0.00056312,10]
[371603116,1752365432801,-409.12861,0.00056312,10]
[371603120,1752365432832,-564.38994012,0.00056312,10]
[371603122,1752365432841,-1814.11827125,0.00056313,2]
[371603125,1752365438347,-5403.02080014,0.00056313,2]
[371603126,1752365438431,-1227.3866596,0.00056313,2]
[371603127,1752365438443,-1965.30427423,0.00056313,2]
[371603128,1752365438454,-1765.79648198,0.00056313,2]
[371603129,1752365438465,-300.0,0.00056313,2]
[371603130,1752365438476,-5880.0,0.00056313,2]
[371603132,1752365438859,-183.04130712,0.00056313,2]
[371603284,1752365440543,-5361.33220568,0.00056313,2]
[371603286,1752365440552,-160.0,0.00056313,2]
[371603289,1752365440562,-783.27853141,0.00056348,2]
[371603291,1752365440573,-803.36082195,0.00056348,2]
[371603571,1752365443544,-939.72498845,0.00056348,2]
[371603597,1752365443769,-1868.63565819,0.00056348,2]
[371603599,1752365443779,-534.75,0.00056354,2]
[371603601,1752365443788,-400.0,0.00056367,7]
[371603603,1752365443798,-194.06,0.00056418,2]
[371603605,1752365443807,-379.16,0.00056482,2]
[371603607,1752365443817,-2104.255426,0.00056547,120]
[371603609,1752365443827,-666.0,0.00056599,2]
[371603611,1752365443836,-620.0,0.00056803,120]
[371603613,1752365443846,-515.0,0.00056813,20]
[371603615,1752365443855,-1000.0,0.000569,2]
[371603617,1752365443865,-400.0,0.00057261,30]
[371603619,1752365443875,-181.24504221,0.00057334,120]
[371603621,1752365443884,-3854.18131437,0.00057334,15]
[371603623,1752365443893,-181.24504211,0.00057383,120]
[371603650,1752365444158,-150.0,0.00057391,120]
[371603653,1752365444175,-527.03500056,0.00057407,80]
[371603655,1752365444188,-1000.0,0.00057424,2]
[371603657,1752365444198,-2500.0,0.00057424,2]
[371603659,1752365444208,-169.71375379,0.00057424,28]
[371603661,1752365444219,-1172.05,0.00057425,30]
[371603663,1752365444228,-539.69362977,0.00057425,30]
[371603907,1752365446743,-272.89637023,0.00057425,30]
[371603909,1752365446753,-181.24504211,0.00057431,120]
[371603911,1752365446764,-500.0,0.00057433,120]
[371603913,1752365446773,-153.1740467,0.00057433,120]
[371603915,1752365446783,-482.40695716,0.00057433,120]
[371603917,1752365446792,-169.91448706,0.00057433,120]
[371603919,1752365446802,-493.91210312,0.00057433,120]
[371603921,1752365446811,-415.48880391,0.00057433,120]
[371603923,1752365446821,-1000.0,0.00057433,120]
[371603925,1752365446831,-5000.0,0.00057434,120]
[371603927,1752365446840,-1354.83672971,0.00057434,120]
[371603936,1752365446919,-1458.418946,0.00057434,120]
[371603942,1752365446976,-2955.29027538,0.00057434,120]
[371605228,1752365481066,210.50656006,0.00028,10]
[371605235,1752366232149,514.0,0.00030137,120]
[371605237,1752366244433,155.38,0.00013699,2]
[371605238,1752366428119,-458.55098692,0.00021,2]
[371605239,1752366428663,172.0,0.00041,90]
[371605240,1752366434085,163.97678492,0.000372,120]
[371605241,1752366436096,-702.1996542,0.00021,2]
[371605242,1752366449080,-30.74401738,0.00021,2]
[371605243,1752366449100,-162.08,0.00021,2]
[371605244,1752366449120,-3160.82289163,0.0002152,2]
[371605245,1752366449143,-155.38,0.00023973,2]
[371605246,1752366449163,-2864.3611552,0.00024,5]
[371605249,1752366519952,345.73847218,0.00041366,31]
[371605250,1752366520027,640.84216273,0.00041366,31]
[371605251,1752366520375,337.68487001,0.00041366,31]
[371605253,1752366560097,-3649.89820834,0.00024,5]
[371605254,1752366560119,-250.0,0.000245,2]
[371605255,1752366560144,-550.0,0.00024999,2]
[371605256,1752366560166,-514.96818766,0.00025,2]
[371605257,1752366572077,-5237.46999273,0.00025,2]
[371605264,1752366631440,-1200.0,0.00024999,2]
[371605266,1752366631453,-109.65379083,0.00025,2]
[371605267,1752366631651,-1725.68621109,0.00025,2]
[371605268,1752366631735,-65318.97957909,0.00025,2]
[371605269,1752366631747,-12799.21433875,0.00025,2]
[371605270,1752366631763,-14154.09769695,0.00025,2]
[371605271,1752366631774,-250.0,0.000264,2]
[371605272,1752366631783,-708.0,0.00027205,2]
[371605273,1752366631793,-600.0,0.00027397,2]
[371605274,1752366631803,-406.21686824,0.00027497,2]
[371605275,1752366631813,-270.8112455,0.00027597,2]
[371605276,1752366631823,-3200.0,0.0003013,2]
[371605277,1752366631833,-155.38,0.00034247,2]
[371605279,1752366631842,-500.0,0.00035933,5]
[371605281,1752366631852,-501.95869541,0.00035933,5]
[371605282,1752366631862,-500.0,0.00035933,5]
[371605283,1752366631872,-200.0,0.00041096,20]
[371605284,1752366631882,-200.0,0.00041096,20]
[371605285,1752366631892,-150.0,0.00041365,2]
[371605286,1752366631901,-150.0,0.00041365,2]
[371605287,1752366631911,-1225.254193,0.00041365,2]
[371605288,1752366631921,-72739.99405898,0.00041365,5]
[371605301,1752366636058,236.37940901,0.00041364,31]
[371605302,1752366636111,448.58951392,0.00041364,31]
[371605303,1752366636161,242.01693053,0.00041364,31]
[371605311,1752366637577,-44927.26917527,0.00041365,5]
[371605312,1752366637587,-501.95479,0.00041365,2]
[371605313,1752366637597,-155.38,0.00044521,2]
[371605314,1752366637606,-444.0,0.000485,2]
[371605315,1752366637616,-590.0,0.000485,2]
[371605316,1752366637626,-6632.58397863,0.00049315,2]
[371605317,1752366637637,-372.06,0.00049534,2]
[371605318,1752366637649,-211.24,0.0004999,2]
[371605319,1752366637660,-1159.0,0.0005,120]
[371605320,1752366637670,-38488.46077432,0.0005,2]
[371605321,1752366637751,-32717.43482303,0.0005,2]
[371605322,1752366637761,-372.06,0.00051391,2]
[371605323,1752366637771,-152.0,0.00051801,3]
[371605324,1752366637780,-372.06,0.00053249,2]
[371605325,1752366637790,-866.86,0.0005383,15]
[371605326,1752366637800,-4573.86,0.0005383,15]
[371605327,1752366637810,-1631.24,0.0005383,15]
[371605328,1752366637820,-1210.0,0.00053852,30]
[371605329,1752366637830,-210.50656006,0.00054224,2]
[371605330,1752366637840,-861.939,0.00054228,102]
[371605331,1752366637849,-23900.0,0.00054331,2]
[371605332,1752366637858,-385.0,0.00054331,2]
[371605333,1752366637867,-166.97,0.00054354,2]
[371605334,1752366637877,-215.96,0.00054495,15]
[371605335,1752366637886,-215.96,0.00054495,15]
[371605336,1752366637895,-215.96,0.00054495,15]
[371605337,1752366637904,-151.65,0.00054523,120]
[371605338,1752366637913,-200.0,0.00054679,7]
[371605339,1752366637922,-200.0,0.0005472,30]
[371605340,1752366637932,-1000.0,0.00054765,120]
[371605341,1752366637941,-409.87,0.00054782,2]
[371605342,1752366637954,-293.7525,0.00054794,120]
[371605343,1752366637963,-150.0,0.00054795,120]
[371605344,1752366637972,-150.0,0.00054795,120]
[371605345,1752366637982,-150.0,0.00054795,120]
[371605346,1752366637991,-150.0,0.00054795,120]
[371605347,1752366638000,-150.0,0.00054795,120]
[371605348,1752366638009,-150.0,0.00054795,120]
[371605349,1752366638018,-239.25526364,0.00054795,120]
[371605350,1752366638027,-151.05267093,0.00054795,120]
[371605351,1752366638037,-150.0,0.00054795,120]
[371605352,1752366638046,-151.46516413,0.00054795,120]
[371605353,1752366638055,-155.38,0.00054795,2]
[371605354,1752366638065,-248.94035793,0.00054795,2]
[371605355,1752366638075,-168.6568329,0.0005495,28]
[371605356,1752366638084,-119718.05740231,0.00055,120]
[371605357,1752366638094,-4800.0,0.00055,120]
[371605358,1752366638104,-2000.0,0.00055,90]
[371605359,1752366638114,-157.86,0.0005505,2]
[371605360,1752366638123,-587.505,0.00055068,120]
[371605361,1752366638133,-157.86,0.00055081,2]
[371605362,1752366638143,-372.06,0.00055106,2]
[371605363,1752366638152,-157.86,0.00055112,2]
[371605364,1752366638161,-157.86,0.00055142,2]
[371605365,1752366638170,-157.86,0.00055173,2]
[371605366,1752366638180,-290.98155975,0.00055194,2]
[371605367,1752366638189,-157.86,0.00055203,2]
[371605368,1752366638200,-152.0,0.00055223,4]
[371605369,1752366638210,-157.86,0.00055234,2]
[371605370,1752366638219,-157.86,0.00055264,2]
[371605371,1752366638228,-150.0,0.00055268,2]
[371605372,1752366638237,-157.86,0.00055295,2]
[371605373,1752366638246,-157.86,0.00055326,2]
[371605374,1752366638255,-194.06,0.0005533,2]
[371605375,1752366638264,-881.2575,0.00055342,120]
[371605376,1752366638273,-157.86,0.00055356,2]
[371605377,1752366638283,-153.78,0.00055371,120]
[371605378,1752366638292,-157.86,0.00055387,2]
[371605379,1752366638301,-157.86,0.00055417,2]
[371605380,1752366638311,-157.86,0.00055448,2]
[371605381,1752366638321,-1209.0,0.00055471,30]
[371605382,1752366638330,-157.86,0.00055478,2]
[371605383,1752366638339,-1210.0,0.00055481,120]
[371605384,1752366638348,-161.8,0.00055494,2]
[371605385,1752366638358,-157.86,0.00055509,2]
[371605386,1752366638367,-250.0,0.00055525,120]
[371605387,1752366638377,-157.86,0.0005554,2]
[371605388,1752366638387,-157.86,0.0005557,2]
[371605389,1752366638396,-157.86,0.00055601,2]
[371605390,1752366638406,-1175.01,0.00055616,120]
[371605391,1752366638415,-168.65683288,0.00055759,28]
[371605392,1752366638424,-1468.7625,0.0005589,120]
[371605393,1752366638434,-150.0,0.0005589,120]
[371605394,1752366638444,-150.0,0.0005589,120]
[371605395,1752366638457,-284.0,0.00056,120]
[371605396,1752366638466,-242.4,0.00056073,2]
[371605397,1752366638475,-1762.515,0.00056164,120]
[371605398,1752366638485,-2000.0,0.0005625,90]
[371605399,1752366638494,-1209.0,0.00056257,2]
[371605400,1752366638503,-284.0,0.0005637,120]
[371605401,1752366638512,-246.0,0.00056398,2]
[371605402,1752366638522,-4988.7739595,0.0005641,15]
[371605403,1752366638531,-254.91,0.00056418,120]
[371605404,1752366638540,-266.34,0.00056418,2]
[371605405,1752366638550,-2056.2675,0.00056438,120]
[371605406,1752366638559,-666.0,0.00056458,2]
[371605407,1752366638569,-5000.0,0.0005647,120]
[371605408,1752366638578,-1209.0,0.00056518,2]
[371605409,1752366638588,-2196.447439,0.00056539,120]
[371605410,1752366638597,-725.42106173,0.00056539,120]
[371605411,1752366638606,-246.0,0.0005656,2]
[371605412,1752366638615,-168.65683288,0.00056567,28]
[371605413,1752366638625,-4988.77395941,0.00056615,15]
[371605414,1752366638634,-2350.02,0.00056712,120]
[371605415,1752366638645,-246.0,0.0005677,7]
[371605416,1752366638657,-725.42106173,0.00056778,120]
[371605417,1752366638667,-4988.77395941,0.0005682,15]
[371605418,1752366638676,-4493.23001,0.0005686,82]
[371605419,1752366638686,-2500.0,0.0005689,2]
[371605420,1752366638695,-5000.0,0.000569,120]
[371605421,1752366638707,-156.93167914,0.000569,35]
[371605422,1752366638716,-900.0,0.000569,20]
[371605423,1752366638725,-171.53570729,0.000569,15]
[371605424,1752366638734,-372.06,0.00056964,2]
[371605425,1752366638743,-122471.530143,0.0005698,4]
[371605426,1752366638753,-2643.7725,0.00056986,120]
[371605427,1752366638763,-150.0,0.00056986,120]
[371605428,1752366638772,-150.0,0.00056986,120]
[371605429,1752366638781,-150.0,0.00056986,120]
[371605430,1752366638790,-165.74500967,0.00056986,120]
[371605431,1752366638799,-3741.5930929,0.00056988,2]
[371605432,1752366638808,-1048.8696,0.00056989,30]
[371605433,1752366638817,-25214.7267942,0.0005699,4]
[371605434,1752366638826,-27745.81,0.00057,120]
[371605435,1752366638836,-5189.88871877,0.00057,120]
[371605436,1752366638845,-3602.10382774,0.00057015,4]
[371605437,1752366638854,-4988.77395941,0.00057025,15]
[371605438,1752366638863,-14408.415311,0.00057041,4]
[371605439,1752366638872,-177.8617713,0.00057134,38]
[371605440,1752366638882,-7204.20765548,0.00057191,4]
[371605441,1752366638891,-4988.77395941,0.0005723,15]
[371605442,1752366638900,-3980.6161,0.00057234,2]
[371605443,1752366638909,-425.86,0.00057234,2]
[371605444,1752366638920,-725.42106173,0.00057256,120]
[371605445,1752366638929,-2937.525,0.0005726,120]
[371605446,1752366638939,-204.49727702,0.0005729,4]
[371605447,1752366638949,-91680.3392,0.000573,2]
[371605448,1752366638958,-2216.7005,0.000573,10]
[371605449,1752366638967,-830.643,0.000573,2]
[371605450,1752366638976,-17614.4805,0.00057334,2]
[371605451,1752366638985,-218.14636701,0.00057373,15]
[371605452,1752366638995,-168.65683288,0.00057376,28]
[371605453,1752366639004,-293.8520647,0.00057399,30]
[371605454,1752366639014,-500.0,0.00057399,10]
[371605455,1752366639023,-1000.0,0.000574,2]
[371605456,1752366639033,-204.49727702,0.00057414,4]
[371605457,1752366639043,-500.0,0.00057423,10]
[371605458,1752366639052,-500.0,0.00057424,2]
[371605459,1752366639061,-88888.0,0.00057424,120]
[371605460,1752366639071,-700.0,0.00057433,120]
[371605461,1752366639081,-700.0,0.00057433,120]
[371605462,1752366639091,-299.716723,0.00057433,120]
[371605463,1752366639100,-541.1348295,0.00057433,120]
[371605464,1752366639111,-300.0,0.00057433,120]
[371605465,1752366639121,-300.0,0.00057433,120]
[371605466,1752366639130,-300.0,0.00057433,120]
[371605467,1752366639140,-300.0,0.00057433,120]
[371605468,1752366639150,-300.0,0.00057433,120]
[371605469,1752366639159,-306.86386482,0.00057433,120]
[371605470,1752366639167,-635.31,0.00057433,120]
[371605471,1752366639177,-500.0,0.00057433,120]
[371605472,1752366639186,-600.0,0.00057433,120]
[371605473,1752366639195,-500.0,0.00057433,120]
[371605474,1752366639207,-500.0,0.00057433,120]
[371605475,1752366639217,-166.19990457,0.00057433,120]
[371605476,1752366639226,-500.0,0.00057433,120]
[371605477,1752366639236,-500.0,0.00057433,120]
[371605479,1752366639246,-500.0,0.00057433,120]
[371605481,1752366639255,-500.0,0.00057433,120]
[371605483,1752366639264,-500.0,0.00057433,120]
[371605484,1752366639274,-151.0,0.00057433,120]
[371605485,1752366639283,-157.05897885,0.00057433,120]
[371605486,1752366639293,-500.0,0.00057433,120]
[371605487,1752366639303,-500.0,0.00057433,120]
[371605488,1752366639312,-151.0,0.00057433,120]
[371605489,1752366639322,-500.0,0.00057433,120]
[371605490,1752366639331,-151.0,0.00057433,120]
[371605491,1752366639341,-500.0,0.00057433,120]
[371605493,1752366639351,-151.0,0.00057433,120]
[371605495,1752366639360,-500.0,0.00057433,120]
[371605496,1752366639370,-500.0,0.00057433,120]
[371605497,1752366639379,-500.0,0.00057433,120]
[371605498,1752366639388,-500.0,0.00057433,120]
[371605499,1752366639398,-151.0,0.00057433,120]
[371605500,1752366639407,-500.0,0.00057433,120]
[371605501,1752366639417,-500.0,0.00057433,120]
[371605502,1752366639427,-500.0,0.00057433,120]
[371605503,1752366639437,-500.0,0.00057433,120]
[371605504,1752366639447,-500.0,0.00057433,120]
[371605505,1752366639460,-500.0,0.00057433,120]
[371605506,1752366639470,-200.0,0.00057433,120]
[371605507,1752366639480,-500.0,0.00057433,120]
[371605508,1752366639489,-500.0,0.00057433,120]
[371605509,1752366639500,-500.0,0.00057433,120]
[371605510,1752366639510,-207.4,0.00057433,120]
[371605511,1752366639520,-500.0,0.00057433,120]
[371605512,1752366639529,-500.0,0.00057433,120]
[371605513,1752366639539,-215.0738,0.00057433,120]
[371605514,1752366639549,-500.0,0.00057433,120]
[371605515,1752366639559,-500.0,0.00057433,120]
[371605516,1752366639568,-500.0,0.00057433,120]
[371605517,1752366639578,-500.0,0.00057433,120]
[371605518,1752366639587,-236.04676053,0.00057433,120]
[371605519,1752366639597,-500.0,0.00057433,120]
[371605520,1752366639606,-500.0,0.00057433,120]
[371605521,1752366639615,-500.0,0.00057433,120]
[371605522,1752366639624,-500.0,0.00057433,120]
[371605523,1752366639634,-500.0,0.00057433,120]
[371605524,1752366639644,-500.0,0.00057433,120]
[371605525,1752366639659,-500.0,0.00057433,120]
[371605526,1752366639668,-500.0,0.00057433,120]
[371605527,1752366639677,-500.0,0.00057433,120]
[371605528,1752366639687,-500.0,0.00057433,120]
[371605529,1752366639697,-500.0,0.00057433,120]
[371605530,1752366639708,-500.0,0.00057433,120]
[371605531,1752366639723,-500.0,0.00057433,120]
[371605532,1752366639733,-500.0,0.00057433,120]
[371605533,1752366639743,-500.0,0.00057433,120]
[371605534,1752366639753,-500.0,0.00057433,120]
[371605535,1752366639762,-500.0,0.00057433,120]
[371605536,1752366639771,-500.0,0.00057433,120]
[371605537,1752366639781,-500.0,0.00057433,120]
[371605538,1752366639792,-500.0,0.00057433,120]
[371605539,1752366639802,-500.0,0.00057433,120]
[371605540,1752366639812,-152.16478543,0.00057433,120]
[371605541,1752366639823,-500.0,0.00057433,120]
[371605542,1752366639833,-500.0,0.00057433,120]
[371605543,1752366639843,-500.0,0.00057433,120]
[371605544,1752366639853,-500.0,0.00057433,120]
[371605545,1752366639862,-500.0,0.00057433,120]
[371605546,1752366639872,-500.0,0.00057433,120]
[371605547,1752366639881,-500.0,0.00057433,120]
[371605549,1752366639891,-371.05110489,0.00057433,120]
[371605551,1752366639901,-160.0,0.00057433,120]
[371605553,1752366639911,-160.0,0.00057433,120]
[371605554,1752366639920,-500.0,0.00057433,120]
[371605555,1752366639930,-300.0,0.00057433,120]
[371605556,1752366639940,-160.0,0.00057433,120]
[371605558,1752366639950,-500.0,0.00057433,120]
[371605559,1752366639960,-300.0,0.00057433,120]
[371605560,1752366639971,-160.0,0.00057433,120]
[371605561,1752366639980,-500.0,0.00057433,120]
[371605562,1752366639993,-300.0,0.00057433,120]
[371605563,1752366640013,-160.0,0.00057433,120]
[371605564,1752366640023,-151.0,0.00057433,120]
[371605565,1752366640033,-500.0,0.00057433,120]
[371605566,1752366640042,-160.0,0.00057433,120]
[371605567,1752366640250,-151.0,0.00057433,120]
[371605568,1752366640265,-162.88943705,0.00057433,120]
[371605569,1752366640275,-151.0,0.00057433,120]
[371605570,1752366640284,-300.0,0.00057433,120]
[371605571,1752366640294,-151.0,0.00057433,120]
[371605572,1752366640303,-300.0,0.00057433,120]
[371605573,1752366640312,-151.0,0.00057433,120]
[371605574,1752366640322,-300.0,0.00057433,120]
[371605575,1752366640331,-151.0,0.00057433,120]
[371605576,1752366640340,-300.0,0.00057433,120]
[371605577,1752366640354,-500.0,0.00057433,120]
[371605578,1752366640366,-300.0,0.00057433,120]
[371605579,1752366640376,-151.0,0.00057433,120]
[371605580,1752366640387,-492.215546,0.00057434,69]
[371605581,1752366640397,-200.0,0.00057434,15]
[371605582,1752366640407,-200.0,0.00057434,15]
[371605583,1752366640416,-200.0,0.00057434,15]
[371605584,1752366640426,-177.8617713,0.00057434,38]
[371605585,1752366640436,-4988.77395941,0.00057436,15]
[371605586,1752366640445,-204.49727702,0.00057497,4]
[371605587,1752366640457,-2000.0,0.000575,90]
[371605588,1752366640466,-612.739999,0.000575,120]
[371605589,1752366640475,-202.199767,0.000575,48]
[371605590,1752366640485,-790.0,0.00057507,120]
[371605591,1752366640494,-27488.0,0.00057507,120]
[371605592,1752366640504,-837.79062735,0.00057513,2]
[371605593,1752366640514,-160.0,0.00057513,2]
[371605594,1752366640524,-1100.62,0.00057523,120]
[371605595,1752366640534,-613.49183106,0.00057524,4]
[371605596,1752366640543,-364.63472478,0.00057524,7]
[371605597,1752366640553,-512.11426662,0.00057533,10]
[371605598,1752366640562,-1000.0,0.00057533,120]
[371605599,1752366640572,-1000.0,0.00057534,120]
[371605600,1752366640581,-2105.085534,0.00057534,120]
[371605601,1752366640590,-150.491165,0.00057534,120]
[371605602,1752366640599,-153.183386,0.00057534,120]
[371605603,1752366640608,-2636.990536,0.00057534,120]
[371605604,1752366640618,-3046.192709,0.00057534,120]
[371605605,1752366640628,-460.0,0.00057534,120]
[371605606,1752366640638,-1000.65,0.00057534,120]
[371605607,1752366640649,-460.0,0.00057534,120]
[371605608,1752366640660,-460.0,0.00057534,120]
[371605609,1752366640669,-460.0,0.00057534,120]
[371605610,1752366640678,-460.0,0.00057534,120]
[371605611,1752366640689,-460.0,0.00057534,120]
[371605612,1752366640698,-460.0,0.00057534,120]
[371605613,1752366640709,-460.0,0.00057534,120]
[371605614,1752366640719,-420.0,0.00057534,120]
[371605615,1752366640732,-460.0,0.00057534,120]
[371605616,1752366640742,-460.0,0.00057534,120]
[371605617,1752366640751,-174.552011,0.00057534,120]
[371605618,1752366640761,-197.199754,0.00057534,120]
[371605619,1752366640771,-182.899178,0.00057534,120]
[371605620,1752366640780,-460.0,0.00057534,120]
[371605621,1752366640790,-460.0,0.00057534,120]
[371605622,1752366640800,-460.0,0.00057534,120]
[371605623,1752366640809,-460.0,0.00057534,30]
[371605624,1752366640819,-565.32756561,0.00057534,120]
[371605625,1752366640829,-480.53165773,0.00057534,120]
[371605626,1752366640839,-460.0,0.00057534,120]
[371605627,1752366640849,-460.0,0.00057534,7]
[371605628,1752366640858,-460.0,0.00057534,120]
[371605629,1752366640868,-460.0,0.00057534,120]
[371605630,1752366640878,-460.0,0.00057534,120]
[371605631,1752366640887,-460.0,0.00057534,120]
[371605632,1752366640897,-460.0,0.00057534,120]
[371605633,1752366640906,-460.0,0.00057534,120]
[371605634,1752366640915,-460.0,0.00057534,120]
[371605635,1752366640925,-460.0,0.00057534,120]
[371605636,1752366640936,-460.0,0.00057534,120]